[Event "Hungarian Youth-ch U14 2022"]
[Site "Eger"]
[Date "2022.07.24"]
[Round "2.4"]
[White "Giang, Tran Nam"]
[Black "Gergely, Daniel"]
[Result "1-0"]
[ECO "B33"]
[WhiteElo "2144"]
[BlackElo "2053"]
[Annotator "TA"]
[PlyCount "97"]
[EventDate "2022.07.21"]
[EventType "tourn"]
[EventCountry "HUN"]
[SourceTitle "playchess.com"]
[Source "ChessBase"]
[SourceQuality "1"]
[TimeControl "40/5400+30:1800+30"]

{[%evp 14,97,60,33,30,45,50,12,43,48,64,14,78,70,162,90,89,89,102,91,131,121,168,112,146,109,128,114,168,168,168,178,307,303,298,293,309,304,302,296,292,294,601,612,598,594,964,929,819,527,526,400,400,405,406,418,412,427,598,414,410,429,424,412,402,374,358,322,308,276,374,348,358,357,512,445,908,900,1225,1161,1187,1143,1333,1227,29998,29999]} 1. e4 {[%emt 0:00:32]} c5 {[%emt 0:00:36]} 2. Nf3 {[%emt 0:00:06]} Nc6 {[%emt 0:00:08]} 3. d4 {[%emt 0:00:06]} cxd4 {[%emt 0:00:08]} 4. Nxd4 {[%emt 0:00:06]} Nf6 {[%emt 0:00:14]} 5. Nc3 {[%emt 0:00:16]} g6 {[%emt 0:00:29]} 6. Nxc6 {[%emt 0:00:56]} dxc6 {[%emt 0:00:12] now supersedes 6...bxc6.} 7. Qxd8+ {[%emt 0:02:56]} Kxd8 {[%emt 0:00:04]} 8. Bf4 {[%emt 0:05:17]} Nd7 {[%emt 0:05:20] B34: Sicilian: Accelerated Dragon with 5 Nc3: sidelines.} 9. O-O-O {[%emt 0:07:36]} Bg7 {[%emt 0:02:01]} 10. Bc4 {[%emt 0:05:57]} e5 {[%emt 0:03:29] The position is equal.} 11. Be3 {[%emt 0:02:16]} Ke7 {[%emt 0:02:48] [#]} 12. Bb3 $146 {[%emt 0:05:49] 0x0.002065c13ef3dp-1022s more active pieces. The black rooks are badly placed.} (12. Rhf1 $14) ({Predecessor:} 12. Rd2 Nb6 13. Bb3 Be6 14. Bc5+ Ke8 15. Bxe6 fxe6 16. Rd3 Bf8 17. Bxb6 axb6 18. Rhd1 {½-½ (75) Ashwin,J (2488)-Lakshmi,N (1883) Chennai 2012}) 12... b5 {[%emt 0:06:56]} (12... h5 $11) 13. Rd2 $16 {[%emt 0:06:38]} f5 {[%emt 0:19:46]} (13... a5 $14) 14. Bg5+ {[%emt 0:21:51]} ({White should try} 14. exf5 $18 gxf5 15. f3) 14... Bf6 {[%emt 0:06:26]} 15. Bxf6+ {[%emt 0:00:51]} Nxf6 {[%emt 0:00:24] [#]} 16. exf5 $1 {[%emt 0:00:48]} gxf5 {[%emt 0:13:11]} (16... b4 $2 17. Re1 Re8 18. Rxe5+ Kf8 19. Rxe8+ Nxe8 20. Nd1 $18) 17. Re1 $36 {[%emt 0:03:36][%mdl 2048] White is in control.} Nd7 {[%emt 0:04:17]} (17... e4 $16 {was called for.}) 18. a3 {[%emt 0:10:47]} (18. Re3 $18) 18... a5 {[%emt 0:04:33]} 19. f3 {[%emt 0:05:16]} Re8 {[%emt 0:04:59]} 20. g4 {[%emt 0:02:22]} fxg4 {[%emt 0:08:40]} (20... b4 $16) 21. fxg4 $18 {[%emt 0:00:16]} b4 {[%emt 0:03:09]} 22. Ne4 {[%emt 0:01:46]} Kd8 {[%emt 0:01:09] [#]} (22... bxa3 $142 23. bxa3 a4) 23. Nd6 $1 {[%emt 0:03:00]} Re7 {[%emt 0:00:50]} 24. Nf5 {[%emt 0:00:10]} Re8 {[%emt 0:01:42]} 25. Ng7 {[%emt 0:00:28]} Rh8 {[%emt 0:00:38]} 26. Rxe5 {[%emt 0:01:34]} Kc7 {[%emt 0:00:44]} 27. Re7 {[%emt 0:00:29] Hoping for Be6.} Ra7 $2 {[%emt 0:01:04]} (27... Kb6 28. Rdxd7 Bxd7) 28. Be6 {[%emt 0:02:06]} Rf8 {[%emt 0:04:12]} 29. Nf5 {[%emt 0:03:23]} Kd8 {[%emt 0:01:22]} 30. Rxh7 {[%emt 0:01:12]} Re8 {[%emt 0:00:32]} 31. Nd4 {[%emt 0:02:55]} Kc7 {[%emt 0:02:14]} 32. Bxd7 {[%emt 0:00:55]} Re1+ {[%emt 0:01:14]} 33. Rd1 {[%emt 0:00:04]} Rxd1+ {[%emt 0:00:07]} 34. Kxd1 {[%emt 0:00:03]} Bxd7 {[%emt 0:00:06][%mdl 4096] Endgame KRB-KRN} 35. g5 {[%emt 0:00:55]} Kd6 {[%emt 0:00:12]} (35... Ra8 {keeps fighting.} 36. Nf5 Rd8) 36. Kd2 {[%emt 0:00:39] Nf5+ is the strong threat.} Ra8 {[%emt 0:01:00]} 37. h4 {[%emt 0:00:32]} c5 {[%emt 0:00:24]} 38. Ne2 {[%emt 0:00:42]} Bf5 {[%emt 0:01:56]} 39. Rf7 {[%emt 0:00:43]} Ke6 {[%emt 0:00:34]} 40. Rf6+ {[%emt 0:00:00]} Ke5 {[%emt 0:00:00]} 41. Rc6 {[%emt 0:10:26]} Rd8+ {[%emt 0:02:55]} 42. Ke3 {[%emt 0:04:09]} Kd5 {[%emt 0:02:06]} 43. Ra6 {[%emt 0:03:14]} Rh8 {[%emt 0:05:01]} (43... Re8+ {might work better.} 44. Kf2 Bxc2 45. Rxa5 bxa3 46. bxa3 Kc4) 44. h5 {[%emt 0:03:29]} Kc4 {[%emt 0:04:54]} (44... Re8+ $142 45. Kf2 Bxc2) 45. b3+ {[%emt 0:04:08]} Kb5 {[%emt 0:05:41]} 46. Rf6 {[%emt 0:00:23][%csl Gb3][%cal Ra3a4]} Re8+ {[%emt 0:00:09]} 47. Kd2 {[%emt 0:02:38][%csl Gb3][%cal Ra3a4]} Rd8+ {[%emt 0:00:08]} 48. Kc1 {[%emt 0:00:39][%csl Gb3][%cal Ra3a4]} bxa3 {[%emt 0:00:13]} 49. c4+ {[%emt 0:00:17] Weighted Error Value: White=0.27 (precise) /Black=0.41} 1-0

[Event "Hungarian Youth-ch U14 2022"]
[Site "Eger"]
[Date "2022.07.24"]
[Round "2.5"]
[White "Bodrogi, Bendeguz"]
[Black "Megyaszai, Balazs"]
[Result "1/2-1/2"]
[ECO "A06"]
[WhiteElo "2170"]
[BlackElo "1919"]
[Annotator "TA"]
[PlyCount "55"]
[EventDate "2022.07.21"]
[EventType "tourn"]
[EventCountry "HUN"]
[SourceTitle "playchess.com"]
[Source "ChessBase"]
[SourceQuality "1"]
[TimeControl "40/5400+30:1800+30"]

{[%evp 9,55,0,58,51,53,12,30,22,49,22,125,118,106,125,116,126,149,131,247,133,375,62,56,54,65,60,61,64,64,54,54,38,128,126,159,50,47,0,169,0,51,0,165,179,175,172,260,272]} 1. Nf3 {[%emt 0:00:36]} d5 {[%emt 0:00:37]} 2. g3 {[%emt 0:00:11]} e6 {[%emt 0:00:57]} 3. Bg2 {[%emt 0:00:09]} c6 {[%emt 0:01:55]} 4. O-O {[%emt 0:00:44]} Nd7 {[%emt 0:06:42]} 5. c4 {[%emt 0:01:11]} f5 {[%emt 0:08:24]} (5... dxc4 $11 6. d3 cxd3) 6. d3 $14 {[%emt 0:03:07][%cal Oe2e4] A07: Réti Opening: New York and Capablanca Systems.} Ngf6 {[%emt 0:13:30] Against e4} 7. Bf4 {[%emt 0:16:38]} Be7 {[%emt 0:06:35]} 8. Nc3 {[%emt 0:01:26][%cal Oe2e4] White has an edge.} O-O {[%emt 0:04:02] [#]} 9. e4 $146 {[%emt 0:00:49]} ({Predecessor:} 9. Qc2 Nh5 10. Bd2 dxc4 11. dxc4 e5 12. e4 f4 13. Rad1 fxg3 14. hxg3 Qe8 15. Be3 {0-1 (69) Skowronek,J (1751)-Gruber,R (1976) LSS email 2013}) 9... Nc5 {[%emt 0:05:26]} (9... dxe4 $11 10. dxe4 Nxe4) 10. exd5 $16 {[%emt 0:17:26]} exd5 {[%emt 0:04:32]} 11. cxd5 {[%emt 0:06:21]} Nxd5 {[%emt 0:04:29]} 12. Nxd5 {[%emt 0:00:51]} Qxd5 {[%emt 0:06:16]} 13. Re1 {[%emt 0:00:57]} Bf6 {[%emt 0:06:25]} (13... Qf7 $16) 14. Rc1 {[%emt 0:01:16]} (14. Qc2 $18) 14... Nd7 $2 {[%emt 0:12:56]} (14... Nxd3 $2 {[#]} 15. Ne5 $1 {[%mdl 512]} Nxf4 16. Bxd5+ Nxd5 17. Qb3 $18) (14... Bxb2 $2 15. Nd2 $1 Qd4 16. Rc4 Qxd3 17. Rxc5 $18) (14... Ne6 $16 {was worth a try.}) 15. Qa4 $2 {[%emt 0:31:07]} (15. Ng5 $18 Qxa2 16. Ne6) 15... Nb6 $14 {[%emt 0:02:50]} 16. Qa3 {[%emt 0:00:09] Strongly threatening Ne5.} Qf7 {[%emt 0:01:19]} 17. Ne5 {[%emt 0:01:13]} Bxe5 {[%emt 0:02:01]} 18. Rxe5 {[%emt 0:00:15] Black must now prevent Re7.} Be6 {[%emt 0:01:08]} 19. Rce1 {[%emt 0:00:08]} Rfe8 {[%emt 0:01:15]} 20. b3 {[%emt 0:03:16]} h6 {[%emt 0:04:27]} (20... Nd5 $14) 21. Qd6 $36 {[%emt 0:02:03][%cal Re5e6][%mdl 2048] White has strong initiative.} Nc8 {[%emt 0:01:05]} 22. Qd4 {[%emt 0:03:58] White is much more active.} (22. Qxe6 $16 Rxe6 23. Rxe6) 22... Nb6 $14 {[%emt 0:00:26]} 23. Qd6 {[%emt 0:03:10]} (23. Qe3 $14 Bd7 24. Qd4) 23... Nc8 $1 $18 {[%emt 0:01:43]} 24. Qd4 {[%emt 0:00:26]} (24. Qxe6 $18 Rxe6 25. Rxe6) 24... Nb6 $14 {[%emt 0:00:18]} 25. Qd6 (25. Qe3 $14 Bd7 26. Qc5) 25... Nc8 $1 $18 26. Qxe6 Rxe6 27. Rxe6 Nb6 (27... Kh7 {was necessary.}) 28. Re7 {[%mdl 32768] Weighted Error Value: White=0.59/Black=0.35. An unexpected result.} 1/2-1/2

[Event "Hungarian Youth-ch U14 2022"]
[Site "Eger"]
[Date "2022.07.24"]
[Round "2.6"]
[White "Lazsadi, Kerka Lilla"]
[Black "Eros, Vivien"]
[Result "1/2-1/2"]
[ECO "A49"]
[WhiteElo "1674"]
[BlackElo "1599"]
[Annotator "NA RC COMBH"]
[PlyCount "69"]
[EventDate "2022.07.21"]
[EventType "tourn"]
[EventCountry "HUN"]
[SourceTitle "playchess.com"]
[Source "ChessBase"]
[SourceQuality "1"]
[TimeControl "40/5400+30:1800+30"]

1. d4 {[%emt 0:00:34]} Nf6 {[%emt 0:00:34]} 2. Nf3 {[%emt 0:00:11]} g6 {[%emt 0:00:04]} 3. g3 {[%emt 0:00:20]} Bg7 {[%emt 0:00:08]} 4. Bg2 {[%emt 0:00:10]} d6 {[%emt 0:00:39]} 5. O-O {[%emt 0:00:24]} O-O {[%emt 0:00:09]} 6. Re1 {[%emt 0:01:00]} Nbd7 {[%emt 0:00:25]} 7. e4 {[%emt 0:00:41]} e5 {[%emt 0:00:23]} 8. c3 {[%emt 0:01:19]} Re8 {[%emt 0:00:53]} 9. Nbd2 {[%emt 0:01:00]} c6 {[%emt 0:07:33]} 10. dxe5 {[%emt 0:11:44]} Nxe5 {[%emt 0:04:34]} 11. Nxe5 {[%emt 0:00:14]} dxe5 {[%emt 0:00:12]} 12. Nc4 {[%emt 0:00:37]} Qxd1 {[%emt 0:12:11]} 13. Rxd1 {[%emt 0:00:15]} Be6 {[%emt 0:05:26]} 14. Ne3 {[%emt 0:11:47]} Rad8 {[%emt 0:01:05]} 15. Bd2 {[%emt 0:02:33]} Rd6 {[%emt 0:03:58]} 16. Kf1 {[%emt 0:06:26]} Red8 {[%emt 0:01:22]} 17. Ke2 {[%emt 0:00:54]} Bh6 {[%emt 0:10:49]} 18. b3 {[%emt 0:09:07]} Ng4 {[%emt 0:25:13]} 19. Bc1 {[%emt 0:10:05]} Rxd1 {[%emt 0:19:26]} 20. Nxd1 {[%emt 0:00:15]} Bxc1 {[%emt 0:01:00]} 21. Rxc1 {[%emt 0:01:05]} Nf6 {[%emt 0:01:50]} 22. Ne3 {[%emt 0:00:55]} Kf8 {[%emt 0:00:24]} 23. f4 {[%emt 0:02:03]} exf4 {[%emt 0:00:52]} 24. gxf4 {[%emt 0:00:11]} Ng4 {[%emt 0:00:15]} 25. Bh3 {[%emt 0:02:46]} Nxe3 {[%emt 0:00:15]} 26. Bxe6 {[%emt 0:00:08]} fxe6 {[%emt 0:00:04]} 27. Kxe3 {[%emt 0:00:11]} Kf7 {[%emt 0:00:45]} 28. Rc2 {[%emt 0:00:49]} Rd1 {[%emt 0:01:52]} 29. c4 {[%emt 0:02:59]} c5 {[%emt 0:00:28]} 30. Rf2 {[%emt 0:01:26]} Re1+ {[%emt 0:00:57]} 31. Kd3 {[%emt 0:00:35]} Rd1+ {[%emt 0:00:08]} 32. Ke2 {[%emt 0:00:10]} Ra1 {[%emt 0:00:16]} 33. Kf3 {[%emt 0:01:25]} Rd1 {[%emt 0:00:06]} 34. Re2 {[%emt 0:01:57]} Rd3+ {[%emt 0:01:46]} 35. Kf2 {[%emt 0:01:08]} 1/2-1/2

[Event "Hungarian Youth-ch U14 2022"]
[Site "Eger"]
[Date "2022.07.24"]
[Round "2.7"]
[White "Szarvas, Nora Orsolya"]
[Black "Beznicza, Mira"]
[Result "1-0"]
[ECO "C05"]
[WhiteElo "1692"]
[BlackElo "1608"]
[Annotator "NA RC COMBH"]
[PlyCount "37"]
[EventDate "2022.07.21"]
[EventType "tourn"]
[EventCountry "HUN"]
[SourceTitle "playchess.com"]
[Source "ChessBase"]
[SourceQuality "1"]
[TimeControl "40/5400+30:1800+30"]

1. e4 {[%emt 0:00:36]} e6 {[%emt 0:00:46]} 2. d4 {[%emt 0:00:14]} d5 {[%emt 0:00:13]} 3. Nd2 {[%emt 0:00:14]} Nf6 {[%emt 0:00:27]} 4. e5 {[%emt 0:00:07]} Nfd7 {[%emt 0:00:13]} 5. f4 {[%emt 0:00:32]} c5 {[%emt 0:00:47]} 6. c3 {[%emt 0:00:27]} Nc6 {[%emt 0:01:44]} 7. Ndf3 {[%emt 0:00:33]} Qb6 {[%emt 0:02:57]} 8. a3 {[%emt 0:04:48]} cxd4 {[%emt 0:02:58]} 9. cxd4 {[%emt 0:02:02]} Be7 {[%emt 0:05:52]} 10. h4 {[%emt 0:04:25]} f6 {[%emt 0:02:55]} 11. Bd3 {[%emt 0:35:55]} O-O {[%emt 0:06:44]} 12. Ng5 {[%emt 0:19:31]} fxe5 {[%emt 0:14:01]} 13. Bxh7+ {[%emt 0:02:33]} Kh8 {[%emt 0:00:12]} 14. Bg6 {[%emt 0:00:21]} Nf6 {[%emt 0:01:28]} 15. fxe5 {[%emt 0:01:23]} Nxe5 {[%emt 0:02:31]} 16. dxe5 {[%emt 0:02:27]} Bc5 {[%emt 0:07:04]} 17. exf6 {[%emt 0:05:25]} Bf2+ {[%emt 0:00:22]} 18. Kf1 {[%emt 0:02:09]} Qa6+ {[%emt 0:01:21]} 19. Bd3 {[%emt 0:00:22]} 1-0

[Event "Hungarian Youth-ch U14 2022"]
[Site "Eger"]
[Date "2022.07.24"]
[Round "2.8"]
[White "Balazs, Sztella Anna"]
[Black "Horvath, Greta"]
[Result "0-1"]
[ECO "C50"]
[WhiteElo "1663"]
[BlackElo "1346"]
[Annotator "NA RC COMBH"]
[PlyCount "46"]
[EventDate "2022.07.21"]
[EventType "tourn"]
[EventCountry "HUN"]
[SourceTitle "playchess.com"]
[Source "ChessBase"]
[SourceQuality "1"]
[TimeControl "40/5400+30:1800+30"]

1. e4 {[%emt 0:00:31]} e5 {[%emt 0:00:37]} 2. Nf3 {[%emt 0:00:04]} Nc6 {[%emt 0:00:05]} 3. Bc4 {[%emt 0:00:05]} Nf6 {[%emt 0:00:09]} 4. d3 {[%emt 0:00:05]} Bc5 {[%emt 0:00:09]} 5. c3 {[%emt 0:00:08]} d6 {[%emt 0:00:28]} 6. Bb3 {[%emt 0:00:12]} a6 {[%emt 0:01:22]} 7. h3 {[%emt 0:00:21]} h6 {[%emt 0:02:21]} 8. O-O {[%emt 0:00:33]} Be6 {[%emt 0:03:12]} 9. Bc2 {[%emt 0:00:16]} d5 {[%emt 0:03:39]} 10. exd5 {[%emt 0:01:06]} Nxd5 {[%emt 0:01:51]} 11. Re1 {[%emt 0:01:52]} O-O {[%emt 0:03:44]} 12. Nxe5 {[%emt 0:02:47]} Nxe5 {[%emt 0:03:07]} 13. Rxe5 {[%emt 0:00:16]} Bxf2+ {[%emt 0:01:25]} 14. Kh1 {[%emt 0:00:51]} Bg3 {[%emt 0:20:33]} 15. Re4 {[%emt 0:04:21]} Qd7 {[%emt 0:08:32]} 16. Qf3 {[%emt 0:04:35]} Bd6 {[%emt 0:03:02]} 17. Nd2 {[%emt 0:06:04]} Rfe8 {[%emt 0:05:06]} 18. Nf1 {[%emt 0:06:59]} Nf6 {[%emt 0:03:04]} 19. Rh4 {[%emt 0:08:26]} Bd5 {[%emt 0:03:08]} 20. Qf2 {[%emt 0:01:42]} Qe6 {[%emt 0:08:11]} 21. Bd2 {[%emt 0:12:15]} Qe2 {[%emt 0:04:01]} 22. Kg1 {[%emt 0:10:02]} Re7 {[%emt 0:04:08]} 23. Ne3 {[%emt 0:03:28]} Bh2+ {[%emt 0:00:51]} 0-1

[Event "Hungarian Youth-ch U14 2022"]
[Site "Eger"]
[Date "2022.07.24"]
[Round "2.9"]
[White "Toth, Timea"]
[Black "Karacsonyi, Luca"]
[Result "0-1"]
[ECO "B22"]
[WhiteElo "1964"]
[BlackElo "1789"]
[Annotator "TA"]
[PlyCount "52"]
[EventDate "2022.07.21"]
[EventType "tourn"]
[EventCountry "HUN"]
[SourceTitle "playchess.com"]
[Source "ChessBase"]
[SourceQuality "1"]
[TimeControl "40/5400+30:1800+30"]

{[%evp 17,52,12,8,-9,0,-18,-12,-7,-18,-153,-142,-172,-144,-229,-150,-161,-175,-577,-565,-568,-564,-565,-531,-1039,-1031,-1106,-1095,-1274,-1332,-1327,-1317,-1429,-1396,-2202,-2202,-1999,-1926]} 1. e4 {[%emt 0:00:34]} c5 {[%emt 0:00:35]} 2. c3 {[%emt 0:00:05]} d5 {[%emt 0:00:06]} 3. exd5 {[%emt 0:00:05]} Qxd5 {[%emt 0:00:09]} 4. d4 {[%emt 0:00:02]} Nc6 {[%emt 0:00:10]} 5. Nf3 {[%emt 0:00:05]} Bg4 {[%emt 0:00:06]} 6. Be2 {[%emt 0:00:07]} cxd4 {[%emt 0:00:06]} 7. cxd4 {[%emt 0:00:23]} e6 {[%emt 0:00:07]} 8. O-O {[%emt 0:01:35]} Nf6 {[%emt 0:00:24]} 9. Nc3 {[%emt 0:03:10]} Qa5 {[%emt 0:00:12]} 10. Re1 {[%emt 0:06:45] B22: Sicilian: 2 c3.} Be7 {[%emt 0:12:46] [#]} 11. Bf4 $146 {[%emt 0:51:51]} ({Predecessor:} 11. h3 Bh5 12. a3 O-O 13. Bf4 h6 14. Qd2 Bg6 15. Ne5 Nxe5 16. dxe5 Rfd8 17. b4 Rxd2 18. bxa5 {1-0 (53) Grolleau,M (1804)-Gomez Sanchez,J (2352) Tornelo INT 2021}) 11... O-O {[%emt 0:15:37]} 12. Ne5 {[%emt 0:14:30] The position is equal.} Bxe2 {[%emt 0:05:47]} 13. Qxe2 {[%emt 0:11:09]} (13. Nxc6 $11 bxc6 14. Qxe2) 13... Nxd4 $17 {[%emt 0:06:10]} 14. Qd2 {[%emt 0:04:11]} Rad8 {[%emt 0:02:09] Threatens to win with ...Nh5.} 15. Nd3 {[%emt 0:00:19]} (15. Qd1 $17) 15... Bb4 {[%emt 0:05:27]} 16. Be5 {[%emt 0:02:17]} Ng4 {[%emt 0:08:11]} 17. Re4 $2 {[%emt 0:00:41]} (17. Rad1 {is a better chance.}) 17... Nxe5 $19 {[%emt 0:02:04] Black is clearly winning.} 18. Rxe5 {[%emt 0:00:19] [#]} Nf3+ $1 {[%emt 0:01:31][%mdl 512]} 19. gxf3 {[%emt 0:00:05]} Qxe5 {[%emt 0:00:10][%mdl 64] Pin} 20. Re1 {[%emt 0:01:07] [#]} Rxd3 $1 {[%emt 0:01:34][%cal Bd8d3,Bd3d2,Bd2a2][%mdl 32]} 21. Rxe5 {[%emt 0:00:32]} (21. Qxd3 Qxe1+) 21... Rxd2 {[%emt 0:00:08]} 22. Rb5 {[%emt 0:00:15]} Bxc3 {[%emt 0:00:33]} 23. bxc3 {[%emt 0:00:02]} Rxa2 {[%emt 0:00:11]} 24. Rxb7 {[%emt 0:00:06]} Rc8 {[%emt 0:00:06]} 25. Rb3 {[%emt 0:00:20]} g5 {[%emt 0:00:11] And now ...a5 would win.} 26. Kg2 {[%emt 0:00:21]} a5 {[%emt 0:00:05] Weighted Error Value: White=1.24/Black=0.08 (flawless)} 0-1

[Event "Hungarian Youth-ch U14 2022"]
[Site "Eger"]
[Date "2022.07.24"]
[Round "2.10"]
[White "Kovacs, Reka"]
[Black "Nandin-Erdene, Davaademberel"]
[Result "1/2-1/2"]
[ECO "B19"]
[WhiteElo "1716"]
[BlackElo "1789"]
[Annotator "NA RC COMBH"]
[PlyCount "98"]
[EventDate "2022.07.21"]
[EventType "tourn"]
[EventCountry "HUN"]
[SourceTitle "playchess.com"]
[Source "ChessBase"]
[SourceQuality "1"]
[TimeControl "40/5400+30:1800+30"]

1. e4 {[%emt 0:00:33]} c6 {[%emt 0:00:39]} 2. d4 {[%emt 0:00:08]} d5 {[%emt 0:00:06]} 3. Nc3 {[%emt 0:00:07]} dxe4 {[%emt 0:00:09]} 4. Nxe4 {[%emt 0:00:08]} Bf5 {[%emt 0:00:22]} 5. Ng3 {[%emt 0:00:12]} Bg6 {[%emt 0:00:08]} 6. h4 {[%emt 0:00:15]} h6 {[%emt 0:00:09]} 7. Nf3 {[%emt 0:00:18]} Nd7 {[%emt 0:00:09]} 8. h5 {[%emt 0:00:35]} Bh7 {[%emt 0:00:14]} 9. Bd3 {[%emt 0:00:24]} Bxd3 {[%emt 0:00:12]} 10. Qxd3 {[%emt 0:00:08]} e6 {[%emt 0:00:11]} 11. Bd2 {[%emt 0:00:26]} Ngf6 {[%emt 0:00:20]} 12. O-O-O {[%emt 0:02:33]} Be7 {[%emt 0:00:17]} 13. Kb1 {[%emt 0:01:49]} O-O {[%emt 0:01:27]} 14. Ne4 {[%emt 0:02:19]} c5 {[%emt 0:01:10]} 15. Nxf6+ {[%emt 0:15:19]} Bxf6 {[%emt 0:01:26]} 16. Be3 {[%emt 0:03:45]} Qc7 {[%emt 0:19:28]} 17. g4 {[%emt 0:08:46]} cxd4 {[%emt 0:02:30]} 18. Bxd4 {[%emt 0:11:26]} Qf4 {[%emt 0:25:51]} 19. Qe3 {[%emt 0:12:13]} Qxe3 {[%emt 0:02:08]} 20. Bxe3 {[%emt 0:00:14]} Rfd8 {[%emt 0:08:12]} 21. Rd3 {[%emt 0:04:22]} Be7 {[%emt 0:06:50]} 22. Rhd1 {[%emt 0:10:28]} Nf6 {[%emt 0:00:53]} 23. Ne5 {[%emt 0:09:15]} Nd5 {[%emt 0:04:55]} 24. Bd4 {[%emt 0:04:18]} Bf6 {[%emt 0:04:58]} 25. Nf3 {[%emt 0:01:35]} Be7 {[%emt 0:04:26]} 26. c3 {[%emt 0:00:59]} f6 {[%emt 0:01:41]} 27. Bxa7 {[%emt 0:07:10]} Nxc3+ {[%emt 0:07:20]} 28. bxc3 {[%emt 0:00:03]} Rxd3 {[%emt 0:00:12]} 29. Rxd3 {[%emt 0:00:02]} Rxa7 {[%emt 0:00:35]} 30. Nd4 {[%emt 0:00:48]} Kf7 {[%emt 0:01:00]} 31. f4 {[%emt 0:01:18]} Ra4 {[%emt 0:03:54]} 32. Kb2 {[%emt 0:00:50]} e5 {[%emt 0:00:57]} 33. fxe5 {[%emt 0:00:42]} fxe5 {[%emt 0:00:22]} 34. Nf5 {[%emt 0:00:55]} Rxg4 {[%emt 0:01:05]} 35. Rd7 {[%emt 0:00:28]} Ke6 {[%emt 0:00:18]} 36. Rxe7+ {[%emt 0:00:41]} Kxf5 {[%emt 0:00:05]} 37. Rxb7 {[%emt 0:00:25]} Rg2+ {[%emt 0:01:08]} 38. Kb3 {[%emt 0:00:14]} Rg1 {[%emt 0:02:42]} 39. Kb2 {[%emt 0:00:47]} Rg4 {[%emt 0:00:34]} 40. Kb3 {[%emt 0:00:00]} g6 {[%emt 0:00:00]} 41. hxg6 {[%emt 0:08:23]} Rxg6 {[%emt 0:00:45]} 42. a4 {[%emt 0:02:55]} e4 {[%emt 0:03:45]} 43. a5 {[%emt 0:02:51]} e3 {[%emt 0:00:29]} 44. Re7 {[%emt 0:05:28]} Kf4 {[%emt 0:22:13]} 45. Kc4 {[%emt 0:01:46]} h5 {[%emt 0:02:23]} 46. Kd4 {[%emt 0:03:57]} Rd6+ {[%emt 0:00:29]} 47. Kc5 {[%emt 0:01:09]} Rf6 {[%emt 0:00:39]} 48. Kd4 {[%emt 0:00:23]} Rd6+ {[%emt 0:01:01]} 49. Kc5 {[%emt 0:00:37]} Rf6 {[%emt 0:00:50]} 1/2-1/2

[Event "Hungarian Youth-ch U14 2022"]
[Site "Eger"]
[Date "2022.07.25"]
[Round "3.1"]
[White "Megyaszai, Balazs"]
[Black "Szegedy, Matyas"]
[Result "1/2-1/2"]
[ECO "B43"]
[WhiteElo "1919"]
[BlackElo "2152"]
[Annotator "TA"]
[PlyCount "82"]
[EventDate "2022.07.21"]
[EventType "tourn"]
[EventCountry "HUN"]
[SourceTitle "playchess.com"]
[Source "ChessBase"]
[SourceQuality "1"]
[TimeControl "40/5400+30:1800+30"]

{[%evp 13,82,17,12,0,0,0,13,-17,0,0,0,-12,-13,-11,27,0,18,-13,16,11,11,13,12,0,0,-11,0,0,0,0,0,-12,42,4,21,20,30,19,37,46,38,37,42,44,85,5,4,3,8,7,7,8,59,59,47,0,0,0,0,0,0,0,0,0,0,0,0,0,0,0,0]} 1. e4 {[%emt 0:00:36]} c5 {[%emt 0:00:39]} 2. Nf3 {[%emt 0:00:32]} e6 {[%emt 0:00:22]} 3. d4 {[%emt 0:00:43]} cxd4 {[%emt 0:00:09]} 4. Nxd4 {[%emt 0:00:38]} a6 {[%emt 0:00:11]} 5. Nc3 {[%emt 0:02:18]} Qc7 {[%emt 0:00:10]} 6. Bd3 {[%emt 0:01:04]} Nf6 {[%emt 0:00:31]} 7. O-O {[%emt 0:01:22]} Bd6 {[%emt 0:01:03]} 8. h3 {[%emt 0:05:10] B43: Sicilian: Kan Variation: 5 Nc3.} O-O {[%emt 0:02:15]} 9. Kh1 {[%emt 0:06:15] [#]} Nc6 $146 {[%emt 0:14:12]} ({Predecessor:} 9... Bf4 10. Qf3 Bxc1 11. Raxc1 Nc6 12. Qe3 d6 13. Nde2 b5 14. f4 Bb7 15. f5 Ne5 {½-½ (47) Erben,L (2065)-Stark,S (1953) Magdeburg 2010}) 10. Nb3 {[%emt 0:08:05]} Bf4 {[%emt 0:16:37]} 11. Bxf4 {[%emt 0:17:38]} Qxf4 {[%emt 0:00:05]} 12. Qd2 {[%emt 0:00:13]} Qxd2 {[%emt 0:10:47]} 13. Nxd2 {[%emt 0:00:35]} d5 {[%emt 0:00:02]} 14. Na4 {[%emt 0:08:14]} Bd7 {[%emt 0:06:53]} 15. Nc5 {[%emt 0:05:36]} b6 {[%emt 0:03:16]} 16. Nxd7 {[%emt 0:07:49]} Nxd7 {[%emt 0:00:19]} 17. exd5 {[%emt 0:01:06]} exd5 {[%emt 0:00:07]} 18. c3 {[%emt 0:00:35]} Nc5 {[%emt 0:04:49]} 19. Be2 {[%emt 0:03:17]} b5 {[%emt 0:13:02]} 20. Nb3 {[%emt 0:05:54]} Na4 {[%emt 0:00:15]} 21. Rab1 {[%emt 0:02:11]} Ne5 {[%emt 0:04:26]} 22. Nd4 {[%emt 0:09:59]} Nc5 {[%emt 0:02:59]} (22... Nc4 $11) 23. Bf3 {[%emt 0:03:04]} Nxf3 {[%emt 0:04:02]} 24. Nxf3 {[%emt 0:00:29]} Rfe8 {[%emt 0:01:04]} 25. Nd4 {[%emt 0:01:35]} Nd3 {[%emt 0:06:40]} 26. Kg1 {[%emt 0:00:52]} Ne5 {[%emt 0:00:06]} 27. Rfd1 {[%emt 0:01:18]} Nc4 {[%emt 0:00:08]} 28. Kf1 {[%emt 0:01:25]} Re4 {[%emt 0:01:51]} 29. Nb3 {[%emt 0:01:10]} ({White should play} 29. Nc6 $16) 29... Rae8 $11 {[%emt 0:01:24]} 30. Nd2 {[%emt 0:01:43]} Re2 {[%emt 0:01:35]} 31. Nxc4 {[%emt 0:00:21]} dxc4 {[%emt 0:00:01][%mdl 4096] Endgame KRR-KRR} 32. Re1 {[%emt 0:00:30]} R2e6 {[%emt 0:01:13]} (32... Rxe1+ $11 33. Rxe1 Kf8) 33. Rxe6 $1 $14 {[%emt 0:00:51]} Rxe6 {[%emt 0:00:01] KR-KR} 34. Rd1 {[%emt 0:00:47]} (34. Re1 $14) 34... g6 $11 {[%emt 0:00:05] The position is equal.} 35. Rd7 {[%emt 0:00:37]} Kg7 {[%emt 0:01:28]} 36. Rb7 {[%emt 0:00:52]} h5 {[%emt 0:02:12]} 37. a4 {[%emt 0:01:02]} bxa4 {[%emt 0:00:10]} 38. Rb4 {[%emt 0:01:06][%csl LRa4,LRc4]} Rc6 {[%emt 0:00:33]} 39. Rxa4 {[%emt 0:00:28]} Kf6 {[%emt 0:00:05]} 40. Rb4 {[%emt 0:00:00]} Ke6 {[%emt 0:00:00]} 41. Ke2 {[%emt 0:06:11]} Kd5 {[%emt 0:03:46] Weighted Error Value: White=0.11 (very precise) /Black=0.13 (very precise)} 1/2-1/2